Cogmind - Beta 14 @@@ ROGUE MODE // 2025.01.18 @ 14:18:45 Player: human Result: Destroyed self with Rocket Launcher Performance ------------- Evolutions (0) 0 Regions Visited (3) 600 Robots Destroyed (21) 105 Value Destroyed (667) 667 Prototype IDs (0) 0 Alien Tech Used (0) 0 Bonus (-42) -42 TOTAL SCORE: 1330 Bonus ------- Friendly Fire -42 Cogmind --------- Core Integrity 0/250 Matter 253/300 Energy 99/100 System Corruption 0% Temperature Cool (9) Movement Treading (160) Location -10/Subcaves Parts ------- > --- POWER (1) -------- (None) > --- PROPULSION (2) --- Light Treads Spiked Treads > --- UTILITY (2) ------ Scrap Shield > --- WEAPON (2) ------- Subdweller Machine Gun Rocket Launcher > --- INVENTORY (5) ---- Improved Aluminum Leg Improved Aluminum Leg Riot Gun Small Laser Grenade Launcher Peak State ------------ > --- POWER ------------ Light Ion Engine > --- PROPULSION ------- Improved Aluminum Leg Improved Aluminum Leg > --- UTILITY ---------- Large Storage Unit Targeting Computer > --- WEAPON ----------- Slug Cannon Grenade Launcher > --- INVENTORY -------- Light Treads Improved Aluminum Leg Improved Aluminum Leg Medium Storage Unit Seismic Detector Seismic Detector Hardened Light Armor Plating Hardened Light Armor Plating Medium Laser Small Laser Light Assault Rifle Rocket Launcher [Rating: 13] Favorites ----------- Power Light Ion Engine Engine Light Ion Engine Propulsion Light Treads Treads Light Treads Leg Improved Aluminum Leg Wheel Wheel Utility Targeting Computer Storage Large Storage Unit Processor Targeting Computer Protection Scrap Shield Weapon Grenade Launcher Energy Gun Medium Laser Ballistic Gun Assault Rifle Ballistic Cannon Slug Cannon Launcher Grenade Launcher Build | -11 -10 -10 -10 ------- Run | Yrd Mat Min Sub Slots Evolved . | . . . . Power . | . . . . Propulsion . | . . . . Utility . | . . . . Weapon . | . . . . Parts Attached 31 | 6 11 6 8 Power 2 | 1 . 1 . Engine 2 | 1 . 1 . Core . | . . . . Reactor . | . . . . Propulsion 13 | 2 5 3 3 Treads 4 | . 2 . 2 Leg 6 | 2 2 2 . Wheel 3 | . 1 1 1 Hover . | . . . . Flight . | . . . . Utility 5 | 1 3 . 1 Device . | . . . . Storage 3 | 1 2 . . Processor 1 | . 1 . . Hackware . | . . . . Protection 1 | . . . 1 Artifact . | . . . . Weapon 11 | 2 3 2 4 Energy Gun 4 | 2 . . 2 Energy Cannon . | . . . . Ballistic Gun 3 | . 2 . 1 Ballistic Cannon 1 | . . 1 . Launcher 3 | . 1 1 1 Special Weapon . | . . . . Impact Weapon . | . . . . Slashing Weapon . | . . . . Piercing Weapon . | . . . . Special Melee Weapon . | . . . . Unidentified Prototypes . | . . . . Parts Lost 6 | . 1 4 1 Power 2 | . . 1 1 Propulsion 2 | . 1 1 . Utility . | . . . . Weapon 2 | . . 2 . Highest Loss Streak 2 | . 1 2 1 To Critical Strikes . | . . . . Average Slot Usage (%) 93 | . 97 94 89 Engine 12 | . 14 13 7 Treads 10 | . 1 15 7 Leg 10 | . 22 2 20 Wheel 4 | . 3 7 . Storage 13 | . 14 14 10 Processor 12 | . 11 14 10 Energy Gun 3 | . 7 . 9 Ballistic Gun 3 | . 13 . 4 Ballistic Cannon 6 | . . 11 . Launcher 12 | . 7 13 14 Peak Build Rating 13 | 6 10 13 13 Average Rating 9 | 4 8 10 10 On Entrance 5 | . 6 8 9 Naked Turns . | . . . . Heaviest Build 33 | 10 28 33 29 Greatest Support 40 | 20 40 40 40 Greatest Overweight (x) 3 | . 2 3 1 Average Overweight (x) 1 | . . 2 . Largest Inventory Capacity 15 | 8 15 15 15 Average Capacity 13 | 6 11 15 12 Most Carried 15 | 6 14 14 15 Average Carried 11 | 4 9 12 9 Final Capacity 15 | 8 15 15 5 Final Carried 13 | 6 13 12 5 Class Distribution -------------------- 100% | Mutant Dominant Class ---------------- Mutant | -10/Materials Mutant | -10/Mines Mutant | -10/Subcaves Resources | -11 -10 -10 -10 ----------- Run | Yrd Mat Min Sub Matter Collected 972 | 226 89 461 196 Remotely . | . . . . Salvage Created 400 | . 125 123 152 Parts 34 | . 7 11 16 Haulers Intercepted . | . . . . Recyclers Shooed . | . . . . Parts Field Recycled . | . . . . Retrieved Matter . | . . . . Parts Self-Destructed 9 | . . . 9 Prevented . | . . . . Kills | -11 -10 -10 -10 ------- Run | Yrd Mat Min Sub Combat Hostiles Destroyed 29 | . 3 18 8 Guns 4 | . 3 . 1 Cannons 6 | . . 6 . AOE 19 | . . 12 7 Classes Destroyed 5 | . 1 3 1 Swarmer 7 | . . 5 2 Grunt 7 | . 3 4 . Demolisher 1 | . . 1 . Subdweller 6 | . . . 6 Assembled 8 | . . 8 . Best Kill Streak 6 | . 2 6 3 Combat Bots Only 6 | . 2 6 3 Max Kills in Single Turn 2 | . 1 2 1 Gunslinging . | . . . . Exploded 2 | . . 2 1 Melee . | . . . . Uniques/NPCs Destroyed . | . . . . Combat | -11 -10 -10 -10 -------- Run | Yrd Mat Min Sub Hostile Shots Fired 97 | . 27 54 16 Missed 37 | . 7 23 7 Damage Taken 1183 | . 262 618 303 Core 260 | . 12 163 85 Absorbed by Shields . | . . . . Core Remaining (%) 100 | 100 . . . Volleys Fired 63 | . 11 36 16 Largest 2 | . 2 2 2 Hottest 83 | . 80 78 83 Shots Fired 97 | . 22 49 26 Gun 42 | . 22 4 16 Cannon 23 | . . 23 . Launcher 32 | . . 22 10 Special . | . . . . Kinetic 54 | . 20 27 7 Thermal 11 | . 2 . 9 Explosive 32 | . . 22 10 Electromagnetic . | . . . . Robot Hit Streak 15 | . 9 15 5 Robot Miss Streak 4 | . 2 4 2 Penetration Max . | . . . . Secondary Targets 1 | . 1 . . Max Gunslinging Chain 1 | . 1 . . Shots Hit Robots 56 | . 16 27 13 Core Hits 43 | . 8 26 9 Critical Kills 1 | . . 1 . Critical Parts Destroyed 4 | . . 4 . Critical Strikes 7 | . . 5 2 Burn 2 | . . . 2 Destroy 5 | . . 5 . Melee Attacks . | . . . . Impact . | . . . . Slashing . | . . . . Piercing . | . . . . Sneak Attacks . | . . . . Combat Hostiles . | . . . . Follow-up Attacks . | . . . . Damage Inflicted 2190 | . 182 1328 680 Guns 311 | . 182 42 87 Cannons 405 | . . 405 . Explosions 1474 | . . 881 593 Melee . | . . . . Ramming . | . . . . Kinetic 665 | . 182 447 36 Thermal 51 | . . . 51 Explosive 1474 | . . 881 593 Electromagnetic . | . . . . Impact . | . . . . Slashing . | . . . . Piercing . | . . . . Highest Corruption . | . . . . Average Corruption . | . . . . Corruption Purged . | . . . . Corruption Blocked . | . . . . Overload Shots . | . . . . Overflow Damage 26 | . . 22 4 Projectiles 21 | . . 21 . Explosions 5 | . . 1 4 Melee . | . . . . Knockbacks 6 | . . 6 . Impact . | . . . . Kinetic 6 | . . 6 . Secondary . | . . . . Self-Inflicted Damage 222 | . . 113 109 Shots 10 | . . 7 3 Rammed . | . . . . Targets Rammed . | . . . . Kicked . | . . . . Crushed . | . . . . Highest Temperature 104 | . 25 104 . Average Temperature 27 | . 12 31 . Received Heat Transfer 270 | . 168 60 42 Siege Activations . | . . . . Robots Corrupted . | . . . . Combat Hostiles . | . . . . Parts Fried . | . . . . Impact Corruptions . | . . . . Robots Melted . | . . . . Combat Hostiles . | . . . . Parts Melted . | . . . . Heat Transferred 296 | . . . 296 Parts Sabotaged . | . . . . Parts Stolen . | . . . . Parts Stripped . | . . . . Power Chain Reactions . | . . . . Alert | -11 -10 -10 -10 ------- Run | Yrd Mat Min Sub Peak Influence 147 | . 130 147 . Initial 50 | . . 50 . Average 66 | . 37 79 . Maximum Alert Level . | . . . . Low Security (%) 100 | 100 100 100 . Level 1 . | . . . . Level 2 . | . . . . Level 3 . | . . . . Level 4 . | . . . . Level 5 . | . . . . High Security . | . . . . Max Security . | . . . . Squads Dispatched 3 | . 2 1 . Investigation 1 | . . 1 . Extermination . | . . . . Reinforcement 2 | . 2 . . Assault . | . . . . Garrison . | . . . . Intercept . | . . . . Searches Triggered . | . . . . Construction Impeded . | . . . . Haulers Reinforced . | . . . . Active Scanning Responses . | . . . . Cargo Convoy Interrupts . | . . . . Stealth | -11 -10 -10 -10 --------- Run | Yrd Mat Min Sub Distress Signals 1 | . 1 . . Communications Jammed . | . . . . Distress Signals . | . . . . Times Spotted 40 | . 11 20 9 Peak Tracking Total 6 | . 4 6 3 Tactical Retreats 1 | . . 1 . Traps | -11 -10 -10 -10 ------- Run | Yrd Mat Min Sub Traps Triggered . | . . . . Indirectly . | . . . . Trap Hack Attempts . | . . . . Triggered . | . . . . Disarmed . | . . . . Reprogrammed . | . . . . Reused . | . . . . Traps Extracted . | . . . . Installed . | . . . . Triggered . | . . . . Machines | -11 -10 -10 -10 ---------- Run | Yrd Mat Min Sub Machines Disabled 4 | . . 4 . Max in Single Turn 1 | . . 1 . Machines Repaired . | . . . . Machines Dismantled . | . . . . Machines Sabotaged . | . . . . Overloaded Fab Kills . | . . . . Hacking | -11 -10 -10 -10 --------- Run | Yrd Mat Min Sub Machines Accessed 3 | . 1 1 1 Terminals 2 | . 1 1 . Fabricators . | . . . . Repair Stations . | . . . . Recycling Units . | . . . . Scanalyzers . | . . . . Garrison Access . | . . . . Total Hacks 11 | . 3 4 4 Successful 8 | . 1 3 4 Failed 3 | . 2 1 . Catastrophic 1 | . 1 . . Database Lockouts . | . . . . Manual 5 | . 2 3 . Terminals 7 | . 3 4 . Fabricators . | . . . . Repair Stations . | . . . . Recycling Units . | . . . . Scanalyzers . | . . . . Garrison Access . | . . . . Terminal Hacks 6 | . 1 1 4 Record 4 | . . . 4 Zone Layout 2 | . 1 1 . Fabricator Hacks . | . . . . Repair Station Hacks . | . . . . Recycling Unit Hacks . | . . . . Scanalyzer . | . . . . Garrison Access Hacks . | . . . . Unauthorized Hacks 2 | . . 2 . Terminals 2 | . . 2 . Track 1 | . . 1 . Detonate 1 | . . 1 . Fabricators . | . . . . Repair Stations . | . . . . Recycling Units . | . . . . Scanalyzers . | . . . . Garrison Access . | . . . . Data Cores Recovered . | . . . . Used . | . . . . Hacking Detections 2 | . 1 1 . Full Trace Events 1 | . . 1 . Feedback Events . | . . . . Feedback Blocked . | . . . . Robot Schematics Acquired . | . . . . Robots Built . | . . . . Authchips . | . . . . Time . | . . . . Total Robot Build Rating . | . . . . Part Schematics Acquired . | . . . . Parts Built . | . . . . Authchips . | . . . . Time . | . . . . Total Part Build Rating . | . . . . Parts Repaired . | . . . . Time . | . . . . Parts Recycled . | . . . . Recycled Matter . | . . . . Retrieved Matter . | . . . . Retrieved Components . | . . . . Parts Scanalyzed . | . . . . Part Schematics Acquired . | . . . . Parts Damaged . | . . . . Bothacking | -11 -10 -10 -10 ------------ Run | Yrd Mat Min Sub Used RIF Installer . | . . . . Robots Hacked . | . . . . Non-combat . | . . . . Combat . | . . . . Robot Hacks Applied . | . . . . Relay Couplers Released . | . . . . Fabnet Peak Effective % . | . . . . Robots Rewired . | . . . . Allies Hacked . | . . . . Hacks Repelled . | . . . . Allies | -11 -10 -10 -10 -------- Run | Yrd Mat Min Sub Total Allies 3 | . . 3 . Largest Group 3 | . . 3 1 Highest-Rated Group 40 | . . 40 16 Highest-Rated Ally 16 | . . 16 16 Total Orders . | . . . . Ally Attacks 17 | . . 7 10 Total Damage 95 | . . 12 83 Kills . | . . . . Allies Corrupted . | . . . . Allies Melted . | . . . . Intel | -11 -10 -10 -10 ------- Run | Yrd Mat Min Sub Robot Analysis Total . | . . . . Derelict Logs Recovered 2 | . . 1 1 Drone Launches . | . . . . Drone Recoveries . | . . . . Exploration | -11 -10 -10 -10 ------------- Run | Yrd Mat Min Sub Turns Passed 2016 | 54 353 1078 531 Spaces Moved 1227 | 40 245 651 291 Core 12 | 12 . . . Treads 281 | . 16 193 72 Legs 453 | 28 169 49 207 Wheels 481 | . 60 409 12 Hover . | . . . . Flight . | . . . . Fastest Speed 50 | 50 110 120 120 Average Speed 143 | 99 120 146 161 Slowest Speed 240 | 120 160 240 190 Overloaded Moves . | . . . . Propulsion Burnouts . | . . . . Robots Hopped . | . . . . Cave-ins Triggered . | . . . . Exploration Rate (%) 46 | 4 49 99 33 Regions Visited 3 Branch Regions 2 Pre-discovered Areas . | . . . . Known Exits Taken . | . . . . Unknown Exits Taken 3 | 1 1 1 . Scrap Searched 1 | . . 1 . Spaces Dug 5 | . . 5 . Terrain Destroyed 180 | . . 112 68 Melee . | . . . . Projectile 4 | . . 4 . AOE 176 | . . 108 68 Terrain Rammed . | . . . . Walls Destroyed . | . . . . Machines Disabled . | . . . . Actions | -11 -10 -10 -10 --------- Run | Yrd Mat Min Sub Total 1382 | 51 282 722 327 Wait 27 | . . 27 . Move 1224 | 39 244 650 291 Hop . | . . . . Pick Up 25 | 6 10 3 6 Fast Attach 9 | 6 2 . 1 Attach 6 | . 1 4 1 Detach 1 | . 1 . . Swap 16 | . 8 2 6 Drop 9 | . 5 . 4 Fire 63 | . 11 36 16 Melee . | . . . . Ram . | . . . . Kick . | . . . . Crush . | . . . . Escape Stasis . | . . . . Rewire . | . . . . Trap . | . . . . Miscellaneous 2 | . . . 2 Route ------- -11/Scrapyard -10/Materials (discovered 2 exits: *Mat / *Min) -10/Mines (discovered 3 exits: *Mat x2 / *Sub) -10/Subcaves (discovered 3 exits: Mat x2 / Rec) History --------- Turn | Location | Event 12 | -11/Scrapyard | Discovered new exit (range 15) 55 | -11/Scrapyard | Entered Materials 218 | -10/Materials | Discovered new exit (range 16) 302 | -10/Materials | Build established: Mutant 386 | -10/Materials | Discovered new exit (range 15) 408 | -10/Materials | Entered Mines 588 | -10/Mines | Assembled infested the area 597 | -10/Mines | A weapon hastily lodged in a ceiling crevice suddenly fell to the ground 768 | -10/Mines | Identified exit to Materials 1212 | -10/Mines | Received a Rocket Launcher from a helpful Derelict 1243 | -10/Mines | Discovered exit to Materials (range 10) 1247 | -10/Mines | Assisted by bots powering up and referring to "LRC-V3" 1391 | -10/Mines | Core integrity fell below 50% 1473 | -10/Mines | Discovered new exit (range 8) 1486 | -10/Mines | Entered Subcaves 1486 | -10/Subcaves | Accompanied by 1 ally 1531 | -10/Subcaves | Identified exit to Materials 1569 | -10/Subcaves | Visited Clippyterm 1575 | -10/Subcaves | Identified exit to Recycling 1723 | -10/Subcaves | Shifting Twisted Machinery released Riot Gun 1732 | -10/Subcaves | Shifting Twisted Machinery released Flamer 2000 | -10/Subcaves | A Subdweller sparked back to life 2000 | -10/Subcaves | A Subdweller sparked back to life 2000 | -10/Subcaves | A Subdweller sparked back to life 2011 | -10/Subcaves | Core integrity fell below 20% 2017 | -10/Subcaves | Destroyed self with Rocket Launcher Last Messages --------------- 01890_ Dropped Imp. Aluminum Leg. 01891_ Acquired Riot Gun. 01900_ Acquired 11 matter. 01910_ Acquired 9 matter. 01914_ Acquired 10 matter. 01947_ XW-YJ0(u) tweaks Twisted Machinery. 01997_ Scrap Shield Fragment affixed to Scrap Shield (+20). 02000_ 55-BJ0(R) creaks and sparks as it begins to move. 02000_ 33-5W9(R) creaks and sparks as it begins to move. 02000_ RJ-XX1(R) creaks and sparks as it begins to move. 02010_ RJ-XX1(R) destroyed. 02013_ 55-BJ0(R) affixes Scrap Shield Fragment to Scrap Shield. 02014_ 55-BJ0(R) destroyed. 02016_ 33-5W9(R) affixes Scrap Shield Fragment to Scrap Shield. Map ----- +----------------------------------------------------+ | ????????????????????????????????????????????????# | | ???????????????????????????????????????????????# | | ?????????????????????????????????????????????????? | | ??????????????????????????????????????????????% # | | ??????????????????????????????????????????? | | ??????????????????????????????????????????# | | ?????????????????????????????????????????? ?? | | ?????????????????????????????????????????? ??? | | ?????????????????????????????????????????? #??? | | ??????????????????????????????????????????# % #??? | | ?????????????????????????????????????????## #??# | | ?????????????????????????????????????????# #### | | ????????????????????????????????????????? ## | | ?????????????????????????????????????????? ### | | ?????????????????????????????????????????? #?# | | ?????????????????????????????????????????## ### | | ?????????????????????????????????????????? ?# | | ??????????????????????????????????????????# #?# " | | ????????????????????????????????????????### ### " | | ???????????????????????????????????????## " | | ??????????????????????????????????###?## """" | | ???????????????????#????????????## ### | | ???????????????????# ??????????## ## " | | ??????????? ????### ?######### ?### "" | | ?????????? # # ## #???## "" | | ?????????? @ ### #?#### ""## | | ?????????? ### ### # "##? | | ?????????? #### # ## ##?? | | ??????????? ?????## # ## #??? | | ???????????## ????????# # ## "#??? | | ????????????#???????????# * ### ""#?? | | ????????????????????????# & = ### ##?? | | ????????????????????????### !% # #?#####??? | | ??????????????????????????# =[ ## #????????? | | ??????????????????????????# R # ###????????? | | ???????????????????????????# < ###??????????? | | ????????????????????????????### #????????????? | | ?????????????????????????????# ###????????????? | | ?????????????????????????????# ##??????????????? | | ????????????????????????????? #???????????????? | | ???????????????????????????? #???????????????? | | ??????????????????????????? ????????????????? | | ??????????????????????????? ????????????????? | | ????????????????????????????### ????????????????? | | ??????????????????????????????# ????????????????? | | ??????????????????????????????? ????????????????? | | ??????????????>??????????????????????????????????? | | ?????????????????????????????????????????????????? | | ?????????????????????????????????????????????????? | | ?????????????????????????????????????????????????? | +----------------------------------------------------+ Best States ------------- Heat Dissipation 25 Energy Generation 10 Energy Capacity 125 Matter Stores 300 Matter Capacity 300 Sight Range 16 Terrain Scan Density 10 Armor Coverage 800 Evasion (%) 55 Targeting Accuracy 5 Recoil Reduction 2 Item Schematics ----------------- None Robot Schematics ------------------ None Fabricated ------------ Nothing Alien Tech Used ----------------- None Achievements -------------- None Challenges ------------ None Game ------ Seed ExplosiveWarpMantle Manual? 0 Play Time 00:29:11 Cumulative 76.3 hours Start 2025.01.18 @ 11:12:41 End 2025.01.18 @ 14:18:45 Sessions 2 Manual Loads 0 Difficulty Rogue Special Mode None Game No. 62 Rogue 62 Adventurer 0 Explorer 0 Win Type - Total 0 Types 0/0/0/0/0/0/0/0/0 Lore% 23 Gallery% 40 Achievement% 32 Wizard Run 0 Options --------- Layout 1 ASCII 0 Keyboard 0 Movement Mouse Keybinds 0 Fullscreen 1 Font 24/Smallcaps Map View 50x35 Zoom Use 0% Tactical HUD 1 Map Filters NONE Filters NONE Steam 1 RUN: 50a35264-21f1-4843-afa8-cb04c1ffa465